fUST/lending_fUST_20251201
["ID","MTS","AMOUNT","RATE_DAILY","PERIOD"]
[395189668,1764528648182,-500.0,0.00013698,2]
[395189669,1764528648191,-500.72332999,0.00013698,2]
[395189670,1764528648200,-500.0,0.00013698,2]
[395189671,1764528648209,-500.0,0.00013698,2]
[395189672,1764528648219,-500.0,0.00013698,2]
[395189673,1764528648228,-500.0,0.00013698,2]
[395189674,1764528648237,-500.0,0.00013698,2]
[395189675,1764528648247,-500.0,0.00013698,2]
[395189676,1764528648256,-3382.26,0.00013698,2]
[395189677,1764528648265,-500.0,0.00013698,2]
[395189678,1764528648274,-500.0,0.00013698,2]
[395189679,1764528648283,-500.0,0.00013698,2]
[395189680,1764528648292,-1864.55,0.00013698,2]
[395189681,1764528648301,-500.0,0.00013698,2]
[395189682,1764528648311,-505.4,0.00013698,2]
[395189683,1764528648320,-500.0,0.00013698,2]
[395189684,1764528648329,-500.0,0.00013698,2]
[395189685,1764528648338,-500.0,0.00013698,2]
[395189686,1764528648347,-500.0,0.00013698,2]
[395189687,1764528648357,-500.0,0.00013698,2]
[395189688,1764528648366,-500.0,0.00013698,2]
[395189689,1764528648375,-500.0,0.00013698,2]
[395189690,1764528648385,-500.0,0.00013698,2]
[395189691,1764528648394,-500.0,0.00013698,2]
[395189692,1764528648405,-1629.62,0.00013698,2]
[395189693,1764528648414,-501.4210452,0.00013698,2]
[395189694,1764528648423,-500.0,0.00013698,2]
[395189695,1764528648432,-500.0,0.00013698,2]
[395189696,1764528648440,-500.0,0.00013698,2]
[395189697,1764528648450,-500.0,0.00013698,2]
[395189698,1764528648459,-151.0,0.00013698,2]
[395189699,1764528648467,-151.0,0.00013698,2]
[395189700,1764528648476,-151.0,0.00013698,2]
[395189701,1764528648486,-5906.14,0.00013698,2]
[395189702,1764528648495,-747.3,0.00013698,2]
[395189703,1764528648504,-151.0,0.00013698,2]
[395189704,1764528648513,-151.0,0.00013698,2]
[395189705,1764528648522,-500.0,0.00013698,2]
[395189706,1764528648532,-151.0,0.00013698,2]
[395189707,1764528648541,-500.0,0.00013698,2]
[395189708,1764528648550,-500.0,0.00013698,2]
[395189709,1764528648559,-151.0,0.00013698,2]
[395189710,1764528648569,-500.0,0.00013698,2]
[395189711,1764528648578,-287.498683,0.00013698,2]
[395189712,1764528648587,-500.0,0.00013698,2]
[395189713,1764528648597,-500.0,0.00013698,2]
[395189714,1764528648607,-500.0,0.00013698,2]
[395189715,1764528648616,-500.0,0.00013698,2]
[395189716,1764528648625,-3530.39,0.00013698,2]
[395189717,1764528648634,-500.0,0.00013698,2]
[395189718,1764528648643,-500.0,0.00013698,2]
[395189719,1764528648651,-151.0,0.00013698,2]
[395189720,1764528648660,-500.0,0.00013698,2]
[395189721,1764528648670,-154.046563,0.00013698,2]
[395189722,1764528648679,-500.0,0.00013698,2]
[395189723,1764528648688,-523.01429268,0.00013698,2]
[395189724,1764528648697,-500.0,0.00013698,2]
[395189725,1764528648707,-500.0,0.00013698,2]
[395189726,1764528648716,-500.0,0.00013698,2]
[395189727,1764528648727,-500.0,0.00013698,2]
[395189728,1764528648738,-500.0,0.00013698,2]
[395189729,1764528648747,-151.0,0.00013698,2]
[395189730,1764528648756,-500.0,0.00013698,2]
[395189731,1764528648765,-500.0,0.00013698,2]
[395189732,1764528648774,-691.353057,0.00013698,2]
[395189733,1764528648784,-500.0,0.00013698,2]
[395189734,1764528648797,-691.353057,0.00013698,2]
[395189735,1764528648806,-691.353057,0.00013698,2]
[395189736,1764528648816,-1318.38,0.00013698,2]
[395189737,1764528648825,-691.353057,0.00013698,2]
[395189738,1764528648835,-691.353057,0.00013698,2]
[395189739,1764528648844,-2561.73,0.00013698,2]
[395189740,1764528648853,-691.353057,0.00013698,2]
[395189741,1764528648862,-500.0,0.00013698,2]
[395189742,1764528648872,-151.0,0.00013698,2]
[395189743,1764528648881,-151.0,0.00013698,2]
[395189744,1764528648891,-500.0,0.00013698,2]
[395189745,1764528648901,-691.353057,0.00013698,2]
[395189746,1764528648910,-500.0,0.00013698,2]
[395189747,1764528648920,-691.353057,0.00013698,2]
[395189748,1764528648930,-151.0,0.00013698,2]
[395189749,1764528648939,-691.353057,0.00013698,2]
[395189750,1764528648949,-151.0,0.00013698,2]
[395189751,1764528648959,-164.184309,0.00013698,2]
[395189752,1764528648968,-500.0,0.00013698,2]
[395189753,1764528648977,-691.353057,0.00013698,2]
[395189754,1764528648987,-691.353057,0.00013698,2]
[395189755,1764528648996,-691.353057,0.00013698,2]
[395189756,1764528649005,-178.092507,0.00013698,2]
[395189757,1764528649016,-178.092507,0.00013698,2]
[395189758,1764528649026,-178.092507,0.00013698,2]
[395189759,1764528649035,-500.0,0.00013698,2]
[395189760,1764528649044,-500.0,0.00013698,2]
[395189761,1764528649055,-500.0,0.00013698,2]
[395189762,1764528649065,-178.092507,0.00013698,2]
[395189763,1764528649074,-151.0,0.00013698,2]
[395189764,1764528649088,-178.092507,0.00013698,2]
[395189765,1764528649097,-151.0,0.00013698,2]
[395189766,1764528649107,-178.092507,0.00013698,2]
[395189767,1764528649117,-2592.26,0.00013698,2]
[395189768,1764528649126,-151.0,0.00013698,2]
[395189769,1764528649136,-500.0,0.00013698,2]
[395189770,1764528649147,-514.58132288,0.00013698,2]
[395189771,1764528649156,-178.092507,0.00013698,2]
[395189772,1764528649166,-151.0,0.00013698,2]
[395189773,1764528649175,-1493.46,0.00013698,2]
[395189774,1764528649184,-178.092507,0.00013698,2]
[395189775,1764528649194,-151.0,0.00013698,2]
[395189776,1764528649203,-178.092507,0.00013698,2]
[395189777,1764528649214,-500.0,0.00013698,2]
[395189778,1764528649223,-151.0,0.00013698,2]
[395189779,1764528649232,-178.092507,0.00013698,2]
[395189780,1764528649241,-151.0,0.00013698,2]
[395189781,1764528649251,-178.092507,0.00013698,2]
[395189782,1764528649260,-151.0,0.00013698,2]
[395189783,1764528649269,-178.092507,0.00013698,2]
[395189784,1764528649278,-151.0,0.00013698,2]
[395189785,1764528649287,-2055.67,0.00013698,2]
[395189786,1764528649296,-537.91596619,0.00013698,2]
[395189787,1764528649304,-2495.84,0.00013698,2]
[395189788,1764528649315,-500.0,0.00013698,2]
[395189789,1764528649324,-1241.9,0.00013698,2]
[395189790,1764528649333,-500.0,0.00013698,2]
[395189791,1764528649342,-921.024626,0.00013698,2]
[395189792,1764528649351,-921.024626,0.00013698,2]
[395189793,1764528649360,-921.024626,0.00013698,2]
[395189794,1764528649369,-257.835763,0.00013698,2]
[395189795,1764528649378,-921.024626,0.00013698,2]
[395189796,1764528649387,-500.0,0.00013698,2]
[395189797,1764528649396,-921.024626,0.00013698,2]
[395189798,1764528649406,-500.0,0.00013698,2]
[395189799,1764528649416,-921.024626,0.00013698,2]
[395189800,1764528649425,-500.0,0.00013698,2]
[395189801,1764528649435,-921.024626,0.00013698,2]
[395189802,1764528649444,-921.024626,0.00013698,2]
[395189803,1764528649453,-921.024626,0.00013698,2]
[395189804,1764528649462,-500.0,0.00013698,2]
[395189805,1764528649471,-921.024626,0.00013698,2]
[395189806,1764528649481,-2983.19,0.00013698,2]
[395189807,1764528649491,-921.024626,0.00013698,2]
[395189808,1764528649501,-921.024626,0.00013698,2]
[395189809,1764528649510,-500.0,0.00013698,2]
[395189810,1764528649519,-500.0,0.00013698,2]
[395189811,1764528649528,-500.0,0.00013698,2]
[395189812,1764528649537,-2358.24,0.00013698,2]
[395189813,1764528649547,-2200.21,0.00013698,2]
[395189814,1764528649556,-500.0,0.00013698,2]
[395189815,1764528649687,-776.02,0.00013698,2]
[395189816,1764528649699,-500.0,0.00013698,2]
[395189817,1764528649709,-500.0,0.00013698,2]
[395189818,1764528649718,-500.0,0.00013698,2]
[395189819,1764528649728,-627.91,0.00013698,2]
[395189820,1764528649738,-717.62,0.00013698,2]
[395189821,1764528649748,-1122.84,0.00013698,2]
[395189822,1764528649759,-500.0,0.00013698,2]
[395189823,1764528649768,-500.0,0.00013698,2]
[395189824,1764528649778,-500.0,0.00013698,2]
[395189825,1764528649788,-500.69258079,0.00013698,2]
[395189826,1764528649797,-8074.61,0.00013698,2]
[395189827,1764528649807,-500.0,0.00013698,2]
[395189828,1764528649816,-500.0,0.00013698,2]
[395189829,1764528649825,-590.41439979,0.00013698,2]
[395189830,1764528649836,-509.02638697,0.00013698,2]
[395189831,1764528649845,-500.0,0.00013698,2]
[395189832,1764528649855,-6027.41,0.00013698,2]
[395189833,1764528649866,-745.7,0.00013698,2]
[395189834,1764528649877,-1465.63,0.00013698,2]
[395189835,1764528649886,-509.47,0.00013698,2]
[395189836,1764528649897,-500.0,0.00013698,2]
[395189837,1764528649906,-2436.87,0.00013698,2]
[395189838,1764528649916,-2280.31,0.00013698,2]
[395189839,1764528649926,-5391.05,0.00013698,2]
[395189840,1764528649935,-500.0,0.00013698,2]
[395189841,1764528649944,-151.0,0.00013698,2]
[395189842,1764528649954,-151.0,0.00013698,2]
[395189843,1764528649963,-151.0,0.00013698,2]
[395189844,1764528649972,-151.0,0.00013698,2]
[395189845,1764528649981,-151.0,0.00013698,2]
[395189846,1764528649991,-190.804935,0.00013698,2]
[395189847,1764528650000,-500.0,0.00013698,2]
[395189848,1764528650010,-2131.38,0.00013698,2]
[395189849,1764528650021,-500.0,0.00013698,2]
[395189850,1764528650029,-435.71959835,0.00013698,2]
[395189851,1764528650039,-500.0,0.00013698,2]
[395189852,1764528650048,-500.0,0.00013698,2]
[395189853,1764528650057,-500.0,0.00013698,2]
[395189854,1764528650066,-500.0,0.00013698,2]
[395189855,1764528650076,-500.0,0.00013698,2]
[395189856,1764528650085,-500.0,0.00013698,2]
[395189857,1764528650094,-22448.68,0.00013698,2]
[395189858,1764528650103,-500.0,0.00013698,2]
[395189859,1764528650112,-650.54,0.00013698,2]
[395189860,1764528650122,-2381.96,0.00013698,2]
[395189861,1764528650132,-500.0,0.00013698,2]
[395189862,1764528650141,-500.0,0.00013698,2]
[395189863,1764528650150,-163.97665724,0.00013698,2]
[395189864,1764528650159,-500.0,0.00013698,2]
[395189865,1764528650168,-979.05,0.00013698,2]
[395189866,1764528650177,-1532.54,0.00013698,2]
[395189867,1764528650187,-500.0,0.00013698,2]
[395189868,1764528650196,-500.0,0.00013698,2]
[395189869,1764528650205,-500.0,0.00013698,2]
[395189870,1764528650214,-2704.86,0.00013698,2]
[395189871,1764528650224,-272.08241859,0.00013698,2]
[395189872,1764528650233,-707.93,0.00013698,2]
[395189873,1764528650242,-500.0,0.00013698,2]
[395189874,1764528650251,-797.87,0.00013698,2]
[395189875,1764528650260,-500.0,0.00013698,2]
[395189876,1764528650269,-2651.4,0.00013698,2]
[395189877,1764528650278,-500.0,0.00013698,2]
[395189878,1764528650287,-500.0,0.00013698,2]
[395189879,1764528650296,-500.0,0.00013698,2]
[395189880,1764528650305,-464.731562,0.00013698,2]
[395189881,1764528650315,-464.731562,0.00013698,2]
[395189882,1764528650325,-500.0,0.00013698,2]
[395189883,1764528650334,-464.731562,0.00013698,2]
[395189884,1764528650343,-464.731562,0.00013698,2]
[395189885,1764528650352,-464.731562,0.00013698,2]
[395189886,1764528650361,-464.731562,0.00013698,2]
[395189887,1764528650369,-1433.77,0.00013698,2]
[395189888,1764528650379,-464.731562,0.00013698,2]
[395189889,1764528650388,-464.731562,0.00013698,2]
[395189890,1764528650397,-464.731562,0.00013698,2]
[395189891,1764528650406,-500.0,0.00013698,2]
[395189892,1764528650415,-500.0,0.00013698,2]
[395189893,1764528650424,-500.0,0.00013698,2]
[395189894,1764528650433,-464.731562,0.00013698,2]
[395189895,1764528650443,-464.731562,0.00013698,2]
[395189896,1764528650451,-636.75064577,0.00013698,2]
[395189897,1764528650460,-464.731562,0.00013698,2]
[395189898,1764528650469,-500.0,0.00013698,2]
[395189899,1764528650478,-5595.62,0.00013698,2]
[395189900,1764528650487,-2002.68,0.00013698,2]
[395189901,1764528650496,-500.75529809,0.00013698,2]
[395189902,1764528650505,-2099.88,0.00013698,2]
[395189903,1764528650514,-329.55724313,0.00013698,2]
[395189904,1764528650523,-500.0,0.00013698,2]
[395189905,1764528650532,-500.0,0.00013698,2]
[395189906,1764528650541,-500.0,0.00013698,2]
[395189907,1764528650550,-500.0,0.00013698,2]
[395189908,1764528650559,-500.0,0.00013698,2]
[395189909,1764528650568,-3626.51,0.00013698,2]
[395189910,1764528650577,-3626.51,0.00013698,2]
[395189911,1764528650586,-500.0,0.00013698,2]
[395189912,1764528650594,-3626.51,0.00013698,2]
[395189913,1764528650603,-3626.51,0.00013698,2]
[395189914,1764528650612,-3626.51,0.00013698,2]
[395189915,1764528650621,-3626.51,0.00013698,2]
[395189916,1764528650630,-3626.51,0.00013698,2]
[395189917,1764528650639,-3626.51,0.00013698,2]
[395189918,1764528650648,-1086.76,0.00013698,2]
[395189919,1764528650657,-500.0,0.00013698,2]
[395189920,1764528650666,-3626.51,0.00013698,2]
[395189921,1764528650675,-3626.51,0.00013698,2]
[395189922,1764528650684,-3626.51,0.00013698,2]
[395189923,1764528650693,-3626.51,0.00013698,2]
[395189924,1764528650702,-294.11797187,0.00013698,2]
[395189925,1764528650711,-500.0,0.00013698,2]
[395189926,1764528650740,-3626.51,0.00013698,2]
[395189927,1764528650751,-3626.51,0.00013698,2]
[395189928,1764528650759,-3626.51,0.00013698,2]
[395189929,1764528650769,-3626.51,0.00013698,2]
[395189930,1764528650778,-3626.51,0.00013698,2]
[395189931,1764528650788,-3626.51,0.00013698,2]
[395189932,1764528650796,-500.0,0.00013698,2]
[395189933,1764528650806,-3626.51,0.00013698,2]
[395189934,1764528650815,-3626.51,0.00013698,2]
[395189935,1764528650825,-500.0,0.00013698,2]
[395189936,1764528650834,-500.0,0.00013698,2]
[395189937,1764528650844,-3626.51,0.00013698,2]
[395189938,1764528650853,-1840.47,0.00013698,2]
[395189939,1764528650863,-3626.51,0.00013698,2]
[395189940,1764528650872,-644.48,0.00013698,2]
[395189941,1764528650882,-3626.51,0.00013698,2]
[395189942,1764528650895,-3626.57319459,0.00013698,2]
[395189943,1764528650904,-500.0,0.00013698,2]
[395189944,1764528650915,-151.0,0.00013698,2]
[395189945,1764528650925,-151.0,0.00013698,2]
[395189946,1764528650934,-757.06,0.00013698,2]
[395189947,1764528650943,-224.34885598,0.00013698,2]
[395189948,1764528650953,-313.312118,0.00013698,2]
[395189949,1764528650963,-151.0,0.00013698,2]
[395189950,1764528650973,-167.226275,0.00013698,2]
[395189951,1764528650983,-555.65,0.00013698,2]
[395189952,1764528650993,-500.0,0.00013698,2]
[395189953,1764528651003,-600.18,0.00013698,2]
[395189954,1764528651012,-563.32782679,0.00013698,2]
[395189955,1764528651021,-500.0,0.00013698,2]
[395189956,1764528651030,-151.0,0.00013698,2]
[395189957,1764528651040,-500.0,0.00013698,2]
[395189958,1764528651049,-156.994015,0.00013698,2]
[395189959,1764528651058,-1613.28,0.00013698,2]
[395189960,1764528651067,-500.0,0.00013698,2]
[395189961,1764528651077,-333.0,0.00013698,2]
[395189962,1764528651089,-500.0,0.00013698,2]
[395189963,1764528651099,-333.0,0.00013698,2]
[395189964,1764528651108,-500.0,0.00013698,2]
[395189965,1764528651119,-500.0,0.00013698,2]
[395189966,1764528651128,-500.0,0.00013698,2]
[395189967,1764528651137,-500.0,0.00013698,2]
[395189968,1764528651147,-12047.06,0.00013698,2]
[395189969,1764528651157,-151.0,0.00013698,2]
[395189970,1764528651166,-151.0,0.00013698,2]
[395189971,1764528651175,-2205.95,0.00013698,2]
[395189972,1764528651185,-421.758078,0.00013698,2]
[395189973,1764528651194,-500.0,0.00013698,2]
[395189974,1764528651203,-421.758078,0.00013698,2]
[395189975,1764528651212,-500.0,0.00013698,2]
[395189976,1764528651221,-162.180226,0.00013698,2]
[395189977,1764528651229,-421.758078,0.00013698,2]
[395189978,1764528651238,-322.558431,0.00013698,2]
[395189979,1764528651247,-421.758078,0.00013698,2]
[395189980,1764528651257,-322.558431,0.00013698,2]
[395189981,1764528651267,-998.02,0.00013698,2]
[395189982,1764528651277,-322.558431,0.00013698,2]
[395189983,1764528651288,-421.758078,0.00013698,2]
[395189984,1764528651297,-421.758078,0.00013698,2]
[395189985,1764528651307,-322.558431,0.00013698,2]
[395189986,1764528651318,-421.758078,0.00013698,2]
[395189987,1764528651328,-322.558431,0.00013698,2]
[395189988,1764528651339,-421.758078,0.00013698,2]
[395189989,1764528651348,-322.558431,0.00013698,2]
[395189990,1764528651358,-322.558431,0.00013698,2]
[395189991,1764528651367,-500.0,0.00013698,2]
[395189992,1764528651376,-322.558431,0.00013698,2]
[395189993,1764528651386,-500.0,0.00013698,2]
[395189994,1764528651394,-500.0,0.00013698,2]
[395189995,1764528651402,-960.87,0.00013698,2]
[395189996,1764528651411,-268.048626,0.00013698,2]
[395189997,1764528651420,-268.048626,0.00013698,2]
[395189998,1764528651429,-750.0,0.00013699,2]
[395189999,1764528651439,-1991.759979,0.00013699,2]
[395190000,1764528651448,-1500.0,0.00013699,2]
[395190001,1764528651457,-1000.0,0.00013699,2]
[395190002,1764528651467,-151.000198,0.00013699,2]
[395190003,1764528651476,-151.0,0.00013699,2]
[395190004,1764528651485,-155.98939,0.00013699,2]
[395190005,1764528651494,-214.309859,0.00013699,2]
[395190006,1764528651504,-214.309859,0.00013699,2]
[395190007,1764528651513,-214.309859,0.00013699,2]
[395190008,1764528651523,-214.309859,0.00013699,2]
[395190009,1764528651532,-214.309859,0.00013699,2]
[395190010,1764528651540,-214.309859,0.00013699,2]
[395190011,1764528651550,-214.309859,0.00013699,2]
[395190012,1764528651559,-214.309859,0.00013699,2]
[395190013,1764528651568,-214.309859,0.00013699,2]
[395190014,1764528651577,-214.309859,0.00013699,2]
[395190015,1764528651587,-214.309859,0.00013699,2]
[395190016,1764528651595,-214.309859,0.00013699,2]
[395190017,1764528651605,-500.0,0.00013699,2]
[395190018,1764528651614,-500.18265668,0.00013699,2]
[395190019,1764528651623,-500.6284973,0.00013699,2]
[395190020,1764528651631,-500.42647722,0.00013699,2]
[395190021,1764528651640,-159.23414248,0.00013699,2]
[395190022,1764528651650,-159.15384806,0.00013699,2]
[395190023,1764528651659,-159.62619949,0.00013699,2]
[395190024,1764528651669,-500.38449462,0.00013699,2]
[395190025,1764528651679,-500.43008499,0.00013699,2]
[395190026,1764528651689,-500.54558422,0.00013699,2]
[395190027,1764528651698,-500.73610594,0.00013699,2]
[395190028,1764528651709,-500.0,0.00013699,2]
[395190029,1764528651720,-500.1543061,0.00013699,2]
[395190030,1764528651730,-500.57315353,0.00013699,2]
[395190031,1764528651740,-500.14924081,0.00013699,2]
[395190032,1764528651749,-500.82132545,0.00013699,2]
[395190033,1764528651759,-500.31811753,0.00013699,2]
[395190034,1764528651769,-500.93480547,0.00013699,2]
[395190035,1764528651778,-500.72536035,0.00013699,2]
[395190036,1764528651788,-500.2162429,0.00013699,2]
[395190037,1764528651799,-500.0,0.00013699,2]
[395190038,1764528651809,-500.0,0.00013699,2]
[395190039,1764528651819,-527.31001539,0.00013699,2]
[395190040,1764528651830,-500.24690629,0.00013699,2]
[395190041,1764528651841,-500.0,0.00013699,2]
[395190042,1764528651850,-500.0,0.00013699,2]
[395190043,1764528651862,-500.80061473,0.00013699,2]
[395190044,1764528651877,-500.0,0.00013699,2]
[395190045,1764528652006,-403.07131363,0.00013699,2]
[395190046,1764528652015,-500.41669033,0.00013699,2]
[395190047,1764528652025,-500.81860208,0.00013699,2]
[395190048,1764528652035,-500.0,0.00013699,2]
[395190049,1764528652044,-501.06310092,0.00013699,2]
[395190050,1764528652053,-500.99112955,0.00013699,2]
[395190051,1764528652064,-500.0,0.00013699,2]
[395190052,1764528652073,-500.0,0.00013699,2]
[395190053,1764528652083,-500.0,0.00013699,2]
[395190054,1764528652093,-158.29316467,0.00013699,2]
[395190055,1764528652102,-500.29563503,0.00013699,2]
[395190056,1764528652113,-501.05945417,0.00013699,2]
[395190057,1764528652122,-500.0,0.00013699,2]
[395190058,1764528652132,-431.72376804,0.00013699,2]
[395190059,1764528652142,-500.0,0.00013699,2]
[395190060,1764528652151,-500.0,0.00013699,2]
[395190061,1764528652161,-500.95040111,0.00013699,2]
[395190062,1764528652171,-500.0,0.00013699,2]
[395190063,1764528652180,-500.0,0.00013699,2]
[395190064,1764528652190,-500.78567923,0.00013699,2]
[395190065,1764528652200,-500.3662176,0.00013699,2]
[395190066,1764528652209,-500.0,0.00013699,2]
[395190067,1764528652219,-500.0,0.00013699,2]
[395190068,1764528652228,-302.92840143,0.00013699,2]
[395190069,1764528652238,-501.04514276,0.00013699,2]
[395190070,1764528652248,-500.0,0.00013699,2]
[395190071,1764528652258,-172.79856524,0.00013699,2]
[395190072,1764528652268,-634.5987502,0.00013699,2]
[395190073,1764528652277,-500.66323998,0.00013699,2]
[395190074,1764528652287,-500.14618806,0.00013699,2]
[395190075,1764528652297,-500.0,0.00013699,2]
[395190076,1764528652306,-500.0,0.00013699,2]
[395190077,1764528652315,-234.75305572,0.00013699,2]
[395190078,1764528652324,-500.0,0.00013699,2]
[395190079,1764528652333,-500.0,0.00013699,2]
[395190080,1764528652342,-500.0,0.00013699,2]
[395190081,1764528652351,-500.0,0.00013699,2]
[395190082,1764528652360,-500.46361866,0.00013699,2]
[395190083,1764528652369,-157.75421083,0.00013699,2]
[395190084,1764528652378,-500.0,0.00013699,2]
[395190085,1764528652387,-501.9664999,0.00013699,2]
[395190086,1764528652395,-421.93547124,0.00013699,2]
[395190087,1764528652404,-158.10308354,0.00013699,2]
[395190088,1764528652414,-500.0,0.00013699,2]
[395190089,1764528652422,-500.17233968,0.00013699,2]
[395190090,1764528652431,-500.19607733,0.00013699,2]
[395190091,1764528652441,-500.0,0.00013699,2]
[395190092,1764528652451,-500.0,0.00013699,2]
[395190093,1764528652461,-500.0,0.00013699,2]
[395190094,1764528652472,-500.0,0.00013699,2]
[395190095,1764528652480,-500.0,0.00013699,2]
[395190096,1764528652490,-1000.0,0.00013699,2]
[395190097,1764528652501,-1000.0,0.00013699,2]
[395190098,1764528652510,-1000.0,0.00013699,2]
[395190099,1764528652520,-944.3858,0.00013699,2]
[395190100,1764528652531,-151.0,0.00013699,2]
[395190101,1764528652540,-151.0,0.00013699,2]
[395190102,1764528652549,-151.0,0.00013699,2]
[395190103,1764528652558,-151.0,0.00013699,2]
[395190104,1764528652567,-227.911302,0.00013699,2]
[395190105,1764528652576,-227.911302,0.00013699,2]
[395190106,1764528652585,-151.0,0.00013699,2]
[395190107,1764528652594,-227.911302,0.00013699,2]
[395190108,1764528652603,-227.911302,0.00013699,2]
[395190109,1764528652611,-156.167907,0.00013699,2]
[395190110,1764528652620,-151.0,0.00013699,2]
[395190111,1764528652630,-421.758078,0.00013699,2]
[395190112,1764528652638,-421.758078,0.00013699,2]
[395190113,1764528652648,-322.558431,0.00013699,2]
[395190114,1764528652657,-421.758078,0.00013699,2]
[395190115,1764528652668,-322.558431,0.00013699,2]
[395190116,1764528652678,-421.758078,0.00013699,2]
[395190117,1764528652689,-322.558431,0.00013699,2]
[395190118,1764528652702,-322.558431,0.00013699,2]
[395190119,1764528652719,-800.0,0.00013734,2]
[395190120,1764528652728,-9728.03581202,0.00013735,2]
[395190121,1764528652736,-242.0,0.00013741,2]
[395190122,1764528652746,-800.0,0.00013754,2]
[395190123,1764528652755,-4595.0,0.00013763,2]
[395190124,1764528652764,-1152.0,0.00013783,2]
[395190125,1764528652773,-800.0,0.00013784,2]
[395190126,1764528652782,-365.20732633,0.00013821,2]
[395190127,1764528652791,-1000.0,0.00013821,2]
[395190128,1764528652799,-1000.0,0.00013821,2]
[395190129,1764528652808,-988.63420505,0.00013821,2]
[395190130,1764528652817,-1000.0,0.00013821,2]
[395190131,1764528652826,-1000.0,0.00013821,2]
[395190132,1764528652835,-1000.0,0.00013821,2]
[395190133,1764528652846,-1000.0,0.00013821,2]
[395190134,1764528652855,-1000.0,0.00013821,2]
[395190135,1764528652864,-790.14071825,0.00013821,2]
[395190136,1764528652873,-1013.90962984,0.00013821,2]
[395190137,1764528652882,-1000.0,0.00013821,2]
[395190138,1764528652891,-1000.0,0.00013821,2]
[395190139,1764528652900,-1000.0,0.00013821,2]
[395190140,1764528652910,-613.60809671,0.00013821,2]
[395190141,1764528652918,-1000.0,0.00013821,2]
[395190142,1764528652927,-1000.0,0.00013821,2]
[395190143,1764528652936,-1000.0,0.00013821,2]
[395190144,1764528652946,-1000.0,0.00013821,2]
[395190145,1764528652956,-1000.0,0.00013821,2]
[395190146,1764528652966,-1000.0,0.00013821,2]
[395190147,1764528652976,-350.65400761,0.00013821,2]
[395190148,1764528652985,-1000.0,0.00013821,2]
[395190149,1764528652995,-1000.0,0.00013821,2]
[395190150,1764528653005,-1000.0,0.00013821,2]
[395190151,1764528653014,-1000.0,0.00013821,2]
[395190152,1764528653023,-790.44645851,0.00013821,2]
[395190153,1764528653477,-500.0,0.00013273,2]
[395190154,1764528653486,-62.96931186,0.00013821,2]
[395190165,1764529831934,-1225.39565363,9.104e-05,2]
[395190167,1764529831944,-225.0,9.104e-05,2]
[395190186,1764529832124,-458.75749928,9.127e-05,2]
[395190187,1764529832138,-880.6895328,9.194e-05,2]
[395190188,1764529832148,-1358.0,9.431e-05,2]
[395190189,1764529832158,-1200.0,0.00010152,2]
[395190190,1764529832168,-300.0,0.00010254,2]
[395190191,1764529832177,-434.61823655,0.00010254,2]
[395190192,1764529832187,-185.97674437,0.0001026,2]
[395190193,1764529832197,-3143.59584074,0.0001036,2]
[395190194,1764529832207,-50000.0,0.0001036,2]
[395190195,1764529832218,-300.0,0.0001046,2]
[395190196,1764529832229,-300.0,0.0001046,2]